Workbook

Sheet Foglio1
A1: FLAT TAX INCREMENTALE
K2: IMPOSTE CON FLAT TAX INCREMENTALE | N2: IMPOSTE SENZA FLAT TAX INCREMENTALE
A3: ANNO | B3: 2020 | D3: 2021 | F3: 2022 | K3: MAX SU BASE RAFFFRONTO 2020 - 2022 | L3: =IF(H10=4,MAX(B4:F4),"") -> 50000
A4: reddito | B4: 15000 | C4: =+IF(B4<>"",1,0) -> 1 | D4: 50000 | E4: =+IF(D4<>"",1,0) -> 1 | F4: 20000 | G4: =+IF(F4<>"",1,0) -> 1 | K4: FRANCHIGIA | L4: =IF(H10=4,+L3*5%,"") -> 2500
K5: MAX + FRANCHIGIA | L5: =IF(H10=4,L3+L4,0) -> 52500
K6: DIFFERENZA ENTRO IL LIMITE MAX | L6: =IF(B10-L5>0,(IF((B10-L5)>40000,40000,B10-L5)),"Diff. Negativa") -> 27500
K7: REDDITO ASSOGG. A IMPOSTA SOST. | L7: =L6 -> 27500
K8: IMPOSTA SOSTITUTIVA | L8: =IF(L7<>"Diff. Negativa",L7*15%,0) -> 4125
A9: ANNO | B9: 2023 | C9: Colonna1 | K9: REDDITO ASSOGGETTATO A IRPEF | L9: =IF(L7<>"Diff. Negativa",Foglio1!$B$10:$B$10-L7,0) -> 52500
A10: reddito | B10: 80000 | C10: =+IF(B10<>"",1,0) -> 1 | H10: =+C4+E4+G4+C10 -> 4
K11: IRPEF | N11: IRPEF
K12: REDDITO IMPONIBILE | L12: =+L9 -> 52500 | N12: REDDITO IMPONIBILE | O12: =+Foglio1!$B$10:$B$10 -> 80000
K13: IMPOSTA SULLO SCAGLIONE | L13: =+VLOOKUP($L$12,Tabella1[],2,1) -> 6700 | N13: IMPOSTA SULLO SCAGLIONE | O13: =+VLOOKUP(O12,Tabella1[],2,1) -> 16150
K14: ALIQUOTA SULL'ECCEDENZA | L14: =VLOOKUP($L$12,Tabella1[],3,TRUE) -> 0.35 | N14: ALIQUOTA SULL'ECCEDENZA | O14: =VLOOKUP($O$12,Tabella1[],3,TRUE) -> 0.43
K15: REDDITO ECCEDENZA SCAGLIONE | L15: =$L$12-(VLOOKUP($L$12,Tabella1[#All],1,1)) -> 24500 | N15: REDDITO ECCEDENZA SCAGLIONE | O15: =$O$12-(VLOOKUP($O$12,Tabella1[#All],1,1)) -> 25000
K16: IMPOSTA SULL'ECCEDENZA | L16: =L14*L15 -> 8575 | N16: IMPOSTA SULL'ECCEDENZA | O16: =O14*O15 -> 10750
K17: DETRAZIONI lavoro autonomo | L17: =IF($L$12<5500,1265,(IF(AND($L$12<28000,$L$12>=5500),(500+(1265-500))*(28000-$L$12)/(28000-5500),IF(AND($L$12<50000,$L$12>=28000),(500*(50000-$L$12))/(50000-28000),0)))) -> 0 | N17: DETRAZIONI lavoro autonomo | O17: =IF($O$12<5500,1265,(IF(AND($O$12<28000,$O$12>=5500),(500+(1265-500))*(28000-$O$12)/(28000-5500),IF(AND($O$12<50000,$O$12>=28000),(500*(50000-$O$12))/(50000-28000),0)))) -> 0
A18: =IF(Foglio1!$B$10:$B$10-MAX(Foglio1!$B$4:$F$4)>0,"BENEFICIO SPETTANTE", "BENEFICIO NON SPETTANTE") -> BENEFICIO SPETTANTE | K18: altre detrazioni manuali | N18: altre detrazioni manuali
K19: Totale IRPEF | L19: =+L13+L16-L17-L18 -> 15275 | N19: Totale IRPEF | O19: =+O13+O16-O17-O18 -> 26900
K21: IRPEF + FLAT TAX INCREM.LE | L21: =+L8+L19 -> 19400 | N21: SOLO IRPEF | O21: =+O9+O19 -> 26900
K24: REDDITO | L24: IRPEF + FLAT TAX | M24: REDD.TO DISP. W FLAT TAX | O24: SOLO IRPEF | P24: REDD.TO DISP. W/OUT FT
K25: =IFERROR(K28/$K$28,"-") -> 1 | L25: =IFERROR(L28/$K$28,"-") -> 0.2425 | M25: =1-L25 -> 0.7575 | O25: =IFERROR(O28/$K$28,"_") -> 0.33625 | P25: =1-O25 -> 0.66375
L26: 1 | M26: 1 | O26: 1 | P26: 1
A27: =+IF(H10<4,"","RISPARMIO") -> RISPARMIO | F27: =IF(A18="BENEFICIO SPETTANTE",O21-L21,"") -> 7500 | L27: =+L25-0.07 -> 0.1725 | M27: =+M25 -> 0.7575 | O27: =+O25-0.07 -> 0.26625 | P27: =+P25 -> 0.66375
K28: =+O12 -> 80000 | L28: =+L21 -> 19400 | O28: =+O21 -> 26900
A32: ALIQUOTE IRPEF | B32: Q.TA FISSA | C32: SULL'ECCEDENZA
A33: 0 | B33: 0 | C33: 0.23
A34: 15000 | B34: =+Tabella1[[#This Row],[ALIQUOTE IRPEF]]*C33 -> 3450 | C34: 0.25
A35: 28000 | B35: =+(Tabella1[[#This Row],[ALIQUOTE IRPEF]]-A34)*C34+B34 -> 6700 | C35: 0.35
A36: 55000 | B36: =+(Tabella1[[#This Row],[ALIQUOTE IRPEF]]-A35)*C35+B35 -> 16150 | C36: 0.43
A55: =+IF($H$10<4,"COMPILA TUTTE LE CASELLE","") -> 
